Cogmind - Beta 16 @@@ ROGUE MODE // 2025.12.03 @ 23:22:09 Player: parasect Result: Destroyed by S-43 Plague with Heavy Machine Gun Performance ------------- Evolutions (9) 4500 Regions Visited (16) 3200 Robots Destroyed (149) 745 Value Destroyed (3316) 3316 Prototype IDs (33) 660 Alien Tech Used (0) 0 Bonus (24) 24 TOTAL SCORE: 12445 Bonus ------- High Alert Combat Kills 24 Cogmind --------- Core Integrity 0/1600 Matter 136/300 Energy 100/100 System Corruption 0% Temperature Cool (0) Movement Core (50) Location -1/Access Parts ------- > --- POWER (2) -------- (None) > --- PROPULSION (8) --- (None) > --- UTILITY (13) ----- Advanced Signal Interpreter Advanced Signal Interpreter Hacking Suite Improved System Shield Advanced Corruption Screen > --- WEAPON (2) ------- (None) > --- INVENTORY (5) ---- Improved Fusion Compressor Improved Diametric Drive Matter Filter Gamma Bomb Array Peak State ------------ > --- POWER ------------ Light Particle Reactor Light Quantum Reactor > --- PROPULSION ------- Compact Wheel Improved Flight Unit Improved VTOL Module Improved VTOL Module Field Propulsion Drive Nuclear Pulse Array Impulse Thruster > --- UTILITY ---------- Power Amplifier Enhanced Optical Array Advanced Sensor Array Advanced Signal Interpreter Advanced Signal Interpreter Improved Melee Analysis Suite Matter Filter Advanced ECM Suite Graphene Brace Hacking Suite Hacking Suite Improved System Shield Advanced Corruption Screen > --- WEAPON ----------- Katana Spear > --- INVENTORY -------- Improved Fusion Compressor Light Quantum Reactor Q-thruster Improved Diametric Drive Gamma Bomb Array [Rating: 128] Favorites ----------- Power Heavy Ion Engine Engine Heavy Ion Engine Power Core Light Nuclear Core Reactor Light Quantum Reactor Propulsion Light Treads Treads Light Treads Leg Aluminum Leg Wheel Compact Wheel Flight Unit Improved Flight Unit Utility High-capacity Storage Unit Device Improved Sensor Array Storage High-capacity Storage Unit Processor Targeting Computer Hackware Hacking Suite Protection Light Armor Plating Weapon Improved Medium Laser Energy Gun Improved Medium Laser Energy Cannon Beam Cannon Ballistic Gun Light Assault Rifle Ballistic Cannon Improved Light Cannon Launcher Mini Grenade Launcher Impact Weapon Hammer Slashing Weapon Katana Piercing Weapon Spear Build | -11 -10 -10 -9 -9 -9 -8 -8 -7 -6 -5 -5 -5 -4 -3 -2 -1 ------- Run | Yrd Mat Min Mat Min Exi Min Mat Fac Fac Fac Was Fac Fac Res Res Acc Slots Evolved 18 | . . . 2 . . . 2 2 2 2 . . 2 2 2 2 Power 1 | . . . . . . . . . . . . . 1 . . . Propulsion 6 | . . . 1 . . . . 1 . 1 . . 1 . 1 1 Utility 11 | . . . 1 . . . 2 1 2 1 . . . 2 1 1 Weapon . | . . . . . . . . . . . . . . . . . Parts Attached 125 | 6 15 4 33 . 1 1 25 5 4 3 2 4 3 1 9 9 Power 22 | 1 3 2 4 . . . 3 . . . 1 2 1 . 3 2 Engine 15 | 1 3 2 4 . . . 2 . . . 1 2 . . . . Core 3 | . . . . . . . 1 . . . . . 1 . . 1 Reactor 4 | . . . . . . . . . . . . . . . 3 1 Propulsion 40 | 1 6 . 14 . . . 9 1 1 1 . . 1 1 2 3 Treads 17 | . 3 . 8 . . . 6 . . . . . . . . . Leg 10 | 1 3 . 6 . . . . . . . . . . . . . Wheel 1 | . . . . . . . . . . . . . . . . 1 Hover . | . . . . . . . . . . . . . . . . . Flight 12 | . . . . . . . 3 1 1 1 . . 1 1 2 2 Utility 41 | 2 2 1 5 . 1 1 9 4 3 2 1 2 1 . 3 4 Device 13 | 1 . . . . 1 . 3 2 . 1 . 1 1 . 1 2 Storage 3 | 1 2 . . . . . . . . . . . . . . . Processor 11 | . . 1 1 . . 1 3 . 1 . . 1 . . 2 1 Hackware 5 | . . . . . . . . 1 2 1 . . . . . 1 Protection 9 | . . . 4 . . . 3 1 . . 1 . . . . . Artifact . | . . . . . . . . . . . . . . . . . Weapon 22 | 2 4 1 10 . . . 4 . . . . . . . 1 . Energy Gun 6 | . 2 . 4 . . . . . . . . . . . . . Energy Cannon 4 | . 1 1 1 . . . 1 . . . . . . . . . Ballistic Gun 6 | 2 1 . 3 . . . . . . . . . . . . . Ballistic Cannon 2 | . . . 1 . . . 1 . . . . . . . . . Launcher 1 | . . . . . . . 1 . . . . . . . . . Special Weapon . | . . . . . . . . . . . . . . . . . Impact Weapon 1 | . . . 1 . . . . . . . . . . . . . Slashing Weapon 1 | . . . . . . . 1 . . . . . . . . . Piercing Weapon 1 | . . . . . . . . . . . . . . . 1 . Special Melee Weapon . | . . . . . . . . . . . . . . . . . Unidentified Prototypes 6 | . . . 5 . . . 1 . . . . . . . . . Parts Lost 42 | . . 4 2 . . 1 4 . . 1 2 2 . . 8 18 Power 8 | . . 1 1 . . . . . . . . 2 . . 3 1 Propulsion 13 | . . 1 1 . . . . . . . . . . . 2 9 Utility 17 | . . 1 . . . 1 3 . . 1 2 . . . 3 6 Weapon 4 | . . 1 . . . . 1 . . . . . . . . 2 Highest Loss Streak 18 | . . 2 1 . . 1 2 . . 1 2 1 . . 6 18 To Critical Strikes . | . . . . . . . . . . . . . . . . . Average Backups 14 | 4 11 17 19 19 19 20 19 5 4 2 3 1 3 4 4 4 Power . | . . . 1 1 1 1 1 . . . 1 . . . 1 1 Propulsion 4 | 2 2 2 4 8 8 8 7 1 1 . 1 1 1 1 1 1 Utility 6 | . 5 11 9 7 7 7 8 3 3 2 1 . 2 1 . . Weapon 2 | . 2 2 3 3 3 3 2 . . . . . . . 1 1 Tool/Special . | . . . . . . . . . . . . . . . . . Unused Backups 39 | . . 3 11 . . . 7 9 2 2 . . . 1 2 2 Power 4 | . . . 1 . . . 1 1 . . . . . . 1 . Propulsion 16 | . . 3 5 . . . 1 3 . 2 . . . . 1 1 Utility 16 | . . . 4 . . . 4 5 2 . . . . 1 . . Weapon 3 | . . . 1 . . . 1 . . . . . . . . 1 Tool/Special . | . . . . . . . . . . . . . . . . . Average Slot Usage (%) 96 | . 96 92 97 100 99 99 97 99 99 98 96 85 88 83 88 74 Engine 8 | . 14 14 11 11 11 11 3 7 6 5 5 3 5 4 3 . Core 1 | . . . . . . . 5 . . . . . 5 4 1 . Treads 19 | . 17 27 26 33 33 33 26 . . . . . . . . . Leg 2 | . 10 . 4 . . . . . . . . . . . . . Flight 6 | . . . . . . . . 30 26 29 27 23 25 22 25 17 Device 7 | . 14 . . . . . 7 15 13 10 9 15 15 18 18 13 Storage 8 | . 14 14 11 11 11 11 9 . . . . . . . . . Processor 12 | . . 7 15 11 11 21 18 15 13 11 11 11 10 9 13 17 Hackware 3 | . . . . . . . . 6 19 22 23 17 15 14 13 11 Protection 5 | . . . 6 11 10 . 8 6 6 5 5 5 5 3 3 . Energy Gun 6 | . 6 1 8 11 11 11 7 . . . . . . . . . Energy Cannon 2 | . 3 12 5 . . . 4 . . . . . . . . . Ballistic Gun 3 | . 15 14 6 . . . . . . . . . . . . . Ballistic Cannon 3 | . . . . 11 11 11 5 . . . . . . . . . Slashing Weapon 1 | . . . . . . . . 7 6 5 5 5 5 3 4 3 Peak Build Rating 128 | 6 9 9 18 17 20 18 37 41 51 59 59 59 80 90 113 128 Average Rating 30 | 4 7 8 15 17 17 17 26 40 49 57 56 54 78 85 106 99 On Entrance 39 | . 6 9 9 17 17 18 18 34 41 51 59 56 59 80 89 104 Avg Prop Armor Cover (%) 3 | . . . 20 . . . . . . 1 1 8 . . 4 2 Naked Turns . | . . . . . . . . . . . . . . . . . Heaviest Build 61 | 12 49 49 58 58 58 58 61 15 15 15 17 18 23 24 37 42 Greatest Support 84 | 10 40 40 60 60 60 60 84 20 20 20 25 20 33 35 43 42 Greatest Overweight (x) 4 | 1 1 1 4 . . . 3 . 4 . . 1 . . 1 . Average Overweight (x) . | . . 1 . . . . . . . . . . . . . . Largest Inventory Capacity 20 | 8 20 20 20 20 20 20 20 20 5 5 5 5 5 5 5 5 Average Capacity 15 | 7 15 20 20 20 20 20 20 5 5 5 5 5 5 5 5 5 Most Carried 20 | 5 19 20 20 19 20 20 20 12 5 5 5 4 5 5 5 5 Average Carried 14 | 4 11 17 19 18 19 19 19 5 4 3 4 2 4 4 4 4 Final Capacity 20 | 8 20 20 20 20 20 20 20 5 5 5 5 5 5 5 5 5 Final Carried 20 | 5 18 19 19 19 20 20 13 5 5 5 3 4 5 5 5 4 Class Distribution -------------------- 49% | Scavenger-Mutant 24% | Mutant 14% | Hacker-Ninja 5% | Ninja Dominant Class ---------------- Mutant | -10/Materials Mutant | -10/Mines Scavenger-Mutant | -9/Materials Scavenger-Mutant | -9/Mines Scavenger-Mutant | -9/Exiles Scavenger-Mutant | -8/Mines Scavenger-Mutant | -8/Materials Ninja | -7/Factory Hacker-Ninja | -6/Factory Hacker-Ninja | -5/Factory Hacker-Ninja | -5/Waste Hacker-Ninja | -5/Factory Hacker-Ninja | -4/Factory Hacker-Ninja | -3/Research Hacker-Ninja | -2/Research Hacker-Ninja | -1/Access Resources | -11 -10 -10 -9 -9 -9 -8 -8 -7 -6 -5 -5 -5 -4 -3 -2 -1 ----------- Run | Yrd Mat Min Mat Min Exi Min Mat Fac Fac Fac Was Fac Fac Res Res Acc Matter Collected 2464 | 289 345 56 633 60 . 101 538 140 36 . . . . 126 18 122 Remotely . | . . . . . . . . . . . . . . . . . Salvage Created 5357 | 51 795 208 2189 197 . 179 1185 270 36 . . . . 126 18 103 Parts 290 | 2 48 17 125 16 . 7 55 13 1 . . . . 3 1 2 Haulers Intercepted 11 | . 2 . 6 . . . 3 . . . . . . . . . Recyclers Shooed 4 | . 2 . 1 . . . 1 . . . . . . . . . Parts Field Recycled . | . . . . . . . . . . . . . . . . . Retrieved Matter . | . . . . . . . . . . . . . . . . . Parts Self-Destructed . | . . . . . . . . . . . . . . . . . Prevented . | . . . . . . . . . . . . . . . . . Parts Restored . | . . . . . . . . . . . . . . . . . Kills | -11 -10 -10 -9 -9 -9 -8 -8 -7 -6 -5 -5 -5 -4 -3 -2 -1 ------- Run | Yrd Mat Min Mat Min Exi Min Mat Fac Fac Fac Was Fac Fac Res Res Acc Combat Hostiles Destroyed 92 | . 14 9 34 10 . 6 18 1 . . . . . . . . Melee 1 | . . . . . . . . 1 . . . . . . . . Guns 52 | . 11 3 22 5 . 2 9 . . . . . . . . . Cannons 36 | . 3 5 11 5 . 3 9 . . . . . . . . . AOE 2 | . . 1 1 . . . . . . . . . . . . . Classes Destroyed 13 | 1 6 . 5 . . . 1 . . . . . . . . . Worker 5 | . . . 3 . . . 1 . . . . . . . 1 . Builder 3 | . . . 3 . . . . . . . . . . . . . Tunneler 3 | 2 . . . . . . 1 . . . . . . . . . Hauler 11 | . 2 . 6 . . . 3 . . . . . . . . . Recycler 15 | . 4 1 2 . . . 4 2 . . . . . 1 . 1 Mechanic 1 | . . . 1 . . . . . . . . . . . . . Operator 5 | . 1 . 2 . . . 1 1 . . . . . . . . Watcher 14 | . 3 . 5 . . . 3 2 1 . . . . . . . Swarmer 36 | . 9 9 3 7 . 3 4 1 . . . . . . . . Grunt 40 | . 5 . 22 2 . 3 8 . . . . . . . . . Duelist 2 | . . . 1 1 . . . . . . . . . . . . Sentry 10 | . . . 8 . . . 2 . . . . . . . . . Hunter 4 | . . . . . . . 4 . . . . . . . . . Best Kill Streak 7 | 1 4 3 7 6 . 3 6 2 1 . . . . 1 1 1 Combat Bots Only 6 | . 4 3 3 6 . 3 5 1 . . . . . . . . Max Kills in Single Turn 2 | 1 1 1 1 1 . 1 2 1 1 . . . . 1 1 1 Gunslinging . | . . . . . . . . . . . . . . . . . Exploded 1 | . . 1 1 . . . . . . . . . . . . . Melee 1 | . . . . . . . . 1 . . . . . . . . Uniques/NPCs Destroyed . | . . . . . . . . . . . . . . . . . Combat | -11 -10 -10 -9 -9 -9 -8 -8 -7 -6 -5 -5 -5 -4 -3 -2 -1 -------- Run | Yrd Mat Min Mat Min Exi Min Mat Fac Fac Fac Was Fac Fac Res Res Acc Hostile Shots Fired 857 | . 102 63 140 27 . 32 136 . 3 1 2 31 . 2 76 242 Missed 289 | . 20 20 35 9 . 4 32 . 2 . . 10 . 2 39 116 Hits 568 | . 82 43 105 18 . 28 104 . 1 1 2 21 . . 37 126 Melee 3 | . . . . 1 . . . . . . 2 . . . . . Projectile 565 | . 82 43 105 17 . 28 104 . 1 1 . 21 . . 37 126 Critical Strikes 22 | . 4 . 7 . . 1 3 . . . 2 . . . 1 4 Actively Blocked 4 | . . . . . . . . . . . . . . . 1 3 Damage Taken 8647 | . 885 364 1404 167 . 359 1301 . 14 72 102 365 38 . 969 2607 Core 2773 | . 210 28 151 6 . 85 105 . . 18 58 226 . . 277 1609 Absorbed by Shields . | . . . . . . . . . . . . . . . . . Redirected to Shielding 225 | . . . 20 . . . 50 . . . . 24 25 . 106 . Regen/Repaired (Parts) 756 | . 74 . 247 . . . 250 . . 18 . . . 167 . . Core Remaining (%) 77 | 100 . 4 . . . 39 80 100 100 . . 69 100 100 80 . Volleys Fired 394 | 14 87 22 144 15 . 19 90 2 1 . . . . . . . Largest 2 | 2 2 2 2 2 . 2 2 1 1 . . . . . . . Hottest 131 | 40 80 80 124 89 . 89 131 30 30 . . . . . . . Shots Fired 731 | 28 174 44 246 30 . 38 168 2 1 . . . . . . . Gun 471 | 28 144 28 151 15 . 19 86 . . . . . . . . . Cannon 256 | . 30 16 95 15 . 19 81 . . . . . . . . . Launcher 4 | . . . . . . . 1 2 1 . . . . . . . Special . | . . . . . . . . . . . . . . . . . Kinetic 335 | 28 114 22 80 15 . 19 57 . . . . . . . . . Thermal 303 | . 30 16 113 15 . 19 110 . . . . . . . . . Explosive 4 | . . . . . . . 1 2 1 . . . . . . . Electromagnetic 89 | . 30 6 53 . . . . . . . . . . . . . Robot Hit Streak 16 | 4 11 5 16 8 . 8 12 . . . . . . . . . Robot Miss Streak 6 | 2 5 4 6 3 . 3 5 . . . . . . . . . Penetration Max . | . . . . . . . . . . . . . . . . . Secondary Targets 5 | . 4 . 1 . . . . . . . . . . . . . Max Gunslinging Chain 1 | . 1 . 1 . . . . . . . . . . . . . Shots Hit Robots 462 | 14 92 22 172 18 . 25 97 11 1 . . 2 . 1 1 6 Core Hits 203 | 4 39 11 76 12 . 8 44 4 1 . . . . 1 1 2 Critical Kills 1 | . . . 1 . . . . . . . . . . . . . Critical Parts Destroyed . | . . . . . . . . . . . . . . . . . Critical Strikes 19 | . . . 6 2 . 4 5 1 . . . 1 . . . . Burn 13 | . . . 4 1 . 4 4 . . . . . . . . . Destroy 2 | . . . 2 . . . . . . . . . . . . . Blast 2 | . . . . 1 . . 1 . . . . . . . . . Sever 2 | . . . . . . . . 1 . . . 1 . . . . Melee Attacks 101 | . . . 1 . . . 3 18 9 5 . 17 . 2 34 12 Impact 1 | . . . 1 . . . . . . . . . . . . . Slashing 95 | . . . . . . . 3 18 9 5 . 17 . 2 30 11 Piercing 5 | . . . . . . . . . . . . . . . 4 1 Sneak Attacks 9 | . . . 1 . . . . 5 . . . . . 1 1 1 Combat Hostiles . | . . . . . . . . . . . . . . . . . Follow-up Attacks . | . . . . . . . . . . . . . . . . . Damage Inflicted 9140 | 164 1170 351 3202 366 . 519 2261 630 32 . . 72 . 54 72 247 Guns 4395 | 164 889 100 1802 161 . 261 1018 . . . . . . . . . Cannons 3304 | . 191 221 1202 205 . 258 1227 . . . . . . . . . Explosions 289 | . 90 30 121 . . . . 48 . . . . . . . . Melee 1129 | . . . 70 . . . . 582 32 . . 72 . 54 72 247 Ramming 23 | . . . 7 . . . 16 . . . . . . . . . Kinetic 2761 | 164 584 63 761 205 . 258 726 . . . . . . . . . Thermal 4056 | . 281 251 1583 161 . 261 1519 . . . . . . . . . Explosive 48 | . . . . . . . . 48 . . . . . . . . Electromagnetic 1123 | . 305 37 781 . . . . . . . . . . . . . Impact 70 | . . . 70 . . . . . . . . . . . . . Slashing 1059 | . . . . . . . . 582 32 . . 72 . 54 72 247 Piercing . | . . . . . . . . . . . . . . . . . Highest Corruption 7 | . . . 1 1 1 . . . . . 6 7 1 . . . Average Corruption 2 | . . . 1 1 1 . . . . . 6 6 1 . . . Corruption Purged 1 | . . . . . 1 . . . . . . . . . . . Corruption Blocked 4 | . . . . . . . . . . . . . . . 4 . Effects 8 | . . . . . 1 . . . . . 2 5 . . . . Message Errors 2 | . . . . . . . . . . . . 2 . . . . Matter Fused 3 | . . . . . . . . . . . 1 2 . . . . Heat Flow Errors 1 | . . . . . 1 . . . . . . . . . . . Energy Discharges 1 | . . . . . . . . . . . 1 . . . . . Parts Rejected 1 | . . . . . . . . . . . . 1 . . . . Overload Shots . | . . . . . . . . . . . . . . . . . Overflow Damage 245 | . . 13 72 . . 11 . 119 . . . 12 . . . 18 Projectiles 26 | . . 3 12 . . 11 . . . . . . . . . . Explosions 10 | . . 10 . . . . . . . . . . . . . . Melee 209 | . . . 60 . . . . 119 . . . 12 . . . 18 Knockbacks 14 | . . . . 3 . 5 6 . . . . . . . . . Impact . | . . . . . . . . . . . . . . . . . Kinetic 14 | . . . . 3 . 5 6 . . . . . . . . . Secondary . | . . . . . . . . . . . . . . . . . Self-Inflicted Damage 124 | . 56 . 44 . . . 24 . . . . . . . . . Shots 6 | . 2 . 3 . . . 1 . . . . . . . . . Rammed 3 | . . . . . . . 3 . . . . . . . . . Targets Rammed 5 | . . . 1 . . . 4 . . . . . . . . . Kicked . | . . . . . . . . . . . . . . . . . Crushed 2 | . . . 1 . . . 1 . . . . . . . . . Highest Temperature 513 | . 260 142 513 197 196 342 504 . . . . . 3 . 169 . Average Temperature 102 | . 48 53 124 84 103 152 126 . . . . . 3 . 25 . Received Heat Transfer 1614 | . 288 . 588 6 . 153 414 . . 9 . 39 . . 18 99 Effects 19 | . . . 8 . . 3 8 . . . . . . . . . Shutdowns 2 | . . . 2 . . . . . . . . . . . . . Energy Bleed 6 | . . . 2 . . 1 3 . . . . . . . . . Interference 3 | . . . . . . 2 1 . . . . . . . . . Matter Decay 1 | . . . 1 . . . . . . . . . . . . . Short Circuit 3 | . . . 1 . . . 2 . . . . . . . . . Damage (minor) 4 | . . . 2 . . . 2 . . . . . . . . . Siege Activations . | . . . . . . . . . . . . . . . . . Martial Activations . | . . . . . . . . . . . . . . . . . Shielding Activations . | . . . . . . . . . . . . . . . . . Robots Disrupted . | . . . . . . . . . . . . . . . . . Combat Hostiles . | . . . . . . . . . . . . . . . . . Robots Corrupted . | . . . . . . . . . . . . . . . . . Combat Hostiles . | . . . . . . . . . . . . . . . . . Parts Fried 1 | . . . 1 . . . . . . . . . . . . . Impact Corruptions 2 | . . . 2 . . . . . . . . . . . . . Robots Melted 1 | . . . . . . 1 . . . . . . . . . . Combat Hostiles 1 | . . . . . . 1 . . . . . . . . . . Parts Melted 15 | . 1 1 4 1 . 1 7 . . . . . . . . . Heat Transferred 8540 | . 507 494 3321 407 . 851 2960 . . . . . . . . . Parts Sabotaged . | . . . . . . . . . . . . . . . . . Parts Stolen . | . . . . . . . . . . . . . . . . . Parts Stripped . | . . . . . . . . . . . . . . . . . Power Chain Reactions 8 | . 3 1 4 . . . . . . . . . . . . . Alert | -11 -10 -10 -9 -9 -9 -8 -8 -7 -6 -5 -5 -5 -4 -3 -2 -1 ------- Run | Yrd Mat Min Mat Min Exi Min Mat Fac Fac Fac Was Fac Fac Res Res Acc Maximum Alert Level 2 | . . . 2 1 . . . . . . . . . . . . Low Security (%) 84 | 100 100 100 51 4 . 100 100 100 100 100 100 100 100 100 100 100 Level 1 14 | . . . 42 95 . . . . . . . . . . . . Level 2 1 | . . . 5 . . . . . . . . . . . . . Level 3 . | . . . . . . . . . . . . . . . . . Level 4 . | . . . . . . . . . . . . . . . . . Level 5 . | . . . . . . . . . . . . . . . . . High Security . | . . . . . . . . . . . . . . . . . Max Security . | . . . . . . . . . . . . . . . . . Peak Influence 449 | 5 128 110 449 331 . 61 179 63 33 41 3 172 84 38 124 105 Initial 174 | . . 27 39 174 . . . 63 . 2 3 . 84 22 . . Average 84 | . 44 66 192 263 . 10 65 13 16 19 1 26 65 11 49 8 Influence Increases 3916 | 10 447 233 1062 247 . 141 640 125 125 61 . 272 . 86 285 182 Destroy 0b10 Robot/C 1840 | . 280 180 680 200 . 120 360 20 . . . . . . . . Destroy 0b10 Robot/NC 285 | 10 50 5 110 . . . 65 25 5 . . . . 5 5 5 Destroy Leader 440 | . 70 30 182 30 . 20 102 4 2 . . . . . . . Successful Hack 209 | . 22 . 55 . . . 17 19 26 6 . 8 . 49 7 . Disable Machine 135 | . . 15 . . . . 60 15 . . . 30 . . . 15 Destroy Structure 197 | . 10 3 20 2 . 1 21 12 17 10 . 24 . 2 63 12 Partial Spotted 150 | . . . . . . . . 30 15 . . 15 . 30 60 . Lose Combat Pursuer 660 | . 15 . 15 15 . . 15 . 60 45 . 195 . . 150 150 Influence Decreases 3831 | 10 376 204 715 453 241 141 499 266 120 55 11 100 128 130 285 97 Entered New Map 818 | . . 44 61 273 241 . . 78 . 3 8 . 88 22 . . Time Decay 2717 | 10 376 120 634 180 . 131 399 188 120 50 3 88 40 108 234 36 Lost Part 226 | . . 40 20 . . 10 30 . . 2 . 12 . . 51 61 Purge Threat 70 | . . . . . . . 70 . . . . . . . . . Squads Dispatched 30 | . 2 . 6 . . . 4 6 2 . . . . 1 6 3 Investigation 10 | . . . 4 . . . 3 1 1 . . . . . . 1 Extermination 7 | . . . . . . . . 2 1 . . . . 1 2 1 Reinforcement 13 | . 2 . 2 . . . 1 3 . . . . . . 4 1 Assault . | . . . . . . . . . . . . . . . . . Garrison . | . . . . . . . . . . . . . . . . . Intercept . | . . . . . . . . . . . . . . . . . Searches Triggered . | . . . . . . . . . . . . . . . . . Construction Impeded . | . . . . . . . . . . . . . . . . . Haulers Reinforced 1 | . . . . . . . . 1 . . . . . . . . Active Scanning Responses . | . . . . . . . . . . . . . . . . . Cargo Convoy Interrupts . | . . . . . . . . . . . . . . . . . Stealth | -11 -10 -10 -9 -9 -9 -8 -8 -7 -6 -5 -5 -5 -4 -3 -2 -1 --------- Run | Yrd Mat Min Mat Min Exi Min Mat Fac Fac Fac Was Fac Fac Res Res Acc Distress Signals 9 | . . . 4 . . . 1 . 1 . . 1 . . 2 . Communications Jammed 1 | . . . . . . . . . . . . . . . 1 . Distress Signals 1 | . . . . . . . . . . . . . . . 1 . Times Spotted 247 | . 22 9 44 11 . 6 31 6 14 2 5 22 1 1 35 38 Peak Tracking Total 19 | . 4 3 4 6 . 3 7 2 6 3 5 12 4 3 7 19 Tactical Retreats 29 | . 1 . 1 1 . . 1 . 4 2 . 3 . . 12 4 ECM-based Alert Blocks 35 | . . . . . . . . . 3 . . 5 . . 20 7 Traps | -11 -10 -10 -9 -9 -9 -8 -8 -7 -6 -5 -5 -5 -4 -3 -2 -1 ------- Run | Yrd Mat Min Mat Min Exi Min Mat Fac Fac Fac Was Fac Fac Res Res Acc Traps Triggered 13 | . 2 . 2 . . . 1 . 2 2 . 1 2 . 1 . Indirectly . | . . . . . . . . . . . . . . . . . Trap Hack Attempts . | . . . . . . . . . . . . . . . . . Triggered . | . . . . . . . . . . . . . . . . . Disarmed . | . . . . . . . . . . . . . . . . . Reprogrammed . | . . . . . . . . . . . . . . . . . Reused . | . . . . . . . . . . . . . . . . . Traps Extracted . | . . . . . . . . . . . . . . . . . Installed . | . . . . . . . . . . . . . . . . . Triggered . | . . . . . . . . . . . . . . . . . Machines | -11 -10 -10 -9 -9 -9 -8 -8 -7 -6 -5 -5 -5 -4 -3 -2 -1 ---------- Run | Yrd Mat Min Mat Min Exi Min Mat Fac Fac Fac Was Fac Fac Res Res Acc Machines Disabled 9 | . . 1 . . . . 4 1 . . . 2 . . . 1 Max in Single Turn 1 | . . 1 . . . . 1 1 . . . 1 . . . 1 Garrison Access 6 | . . . . . . . . . . 1 . 1 . 1 2 1 Machines Repaired . | . . . . . . . . . . . . . . . . . Machines Dismantled . | . . . . . . . . . . . . . . . . . Machines Sabotaged . | . . . . . . . . . . . . . . . . . Overloaded Fab Kills . | . . . . . . . . . . . . . . . . . Hacking | -11 -10 -10 -9 -9 -9 -8 -8 -7 -6 -5 -5 -5 -4 -3 -2 -1 --------- Run | Yrd Mat Min Mat Min Exi Min Mat Fac Fac Fac Was Fac Fac Res Res Acc Machines Accessed 70 | . 4 . 9 . 1 . 11 10 7 3 . 5 1 8 7 4 Terminals 41 | . 3 . 5 . . . 9 4 5 . . 4 1 3 5 2 Fabricators 6 | . . . . . . . . 4 1 1 . . . . . . Repair Stations 7 | . 1 . 2 . . . 1 . . 1 . . . 2 . . Recycling Units 2 | . . . . . . . . . 1 . . . . 1 . . Scanalyzers 5 | . . . 2 . . . . 2 . . . . . 1 . . Garrison Access 8 | . . . . . . . 1 . . 1 . 1 . 1 2 2 Total Hacks 196 | . 11 . 39 . 1 . 31 18 14 5 . 25 5 28 12 7 Successful 96 | . 7 . 26 . 1 . 11 9 6 3 . 8 1 19 4 1 Failed 99 | . 4 . 13 . . . 20 9 8 2 . 16 4 9 8 6 Catastrophic 24 | . . . 1 . . . 7 3 3 . . 4 . 1 2 3 Database Lockouts 1 | . . . . . . . . . . . . 1 . . . . Manual 89 | . 9 . 7 . 2 . 23 3 7 . . 21 5 2 8 2 Terminals 112 | . 9 . 14 . . . 23 5 9 . . 24 5 10 9 4 Fabricators 11 | . . . . . . . . 7 3 1 . . . . . . Repair Stations 30 | . 2 . 10 . . . 6 . . 2 . . . 10 . . Recycling Units 3 | . . . . . . . . . 2 . . . . 1 . . Scanalyzers 26 | . . . 15 . . . . 6 . . . . . 5 . . Garrison Access 13 | . . . . . . . 2 . . 2 . 1 . 2 3 3 Terminal Hacks 35 | . 4 . 6 . 1 . 5 1 2 . . 7 1 6 2 . Record 7 | . . . . . . . . . 1 . . 3 . 3 . . Part Schematic 2 | . . . . . . . 1 . . . . 1 . . . . Robot Analysis 3 | . 2 . 1 . . . . . . . . . . . . . Prototype ID Bank 2 | . . . 2 . . . . . . . . . . . . . Open DSF 1 | . . . . . . . . . . . . . . . 1 . Level Access Points 6 | . . . . . . . . 1 1 . . 1 1 1 1 . Fabricator Index 1 | . . . . . . . 1 . . . . . . . . . Scanalyzer Index 1 | . 1 . . . . . . . . . . . . . . . Unreport Threat 1 | . . . . . . . 1 . . . . . . . . . Locate Traps 3 | . . . . . . . . . . . . 2 . 1 . . Transport Status 1 | . . . . . . . 1 . . . . . . . . . Recall Extermination 1 | . . . . . . . . . . . . . . 1 . . Hauler Manifests 3 | . 1 . 1 . . . 1 . . . . . . . . . Zone Layout 2 | . . . 2 . . . . . . . . . . . . . Proto ID Catalog 1 | . . . . . 1 . . . . . . . . . . . Fabricator Hacks 5 | . . . . . . . . 3 2 . . . . . . . Load Schematic 3 | . . . . . . . . 2 1 . . . . . . . Build 2 | . . . . . . . . 1 1 . . . . . . . Repair Station Hacks 27 | . 2 . 7 . . . 6 . . 2 . . . 10 . . Scan Component 14 | . 1 . 4 . . . 3 . . 1 . . . 5 . . Repair 13 | . 1 . 3 . . . 3 . . 1 . . . 5 . . Recycling Unit Hacks 3 | . . . . . . . . . 2 . . . . 1 . . Report Inventory 1 | . . . . . . . . . 1 . . . . . . . Retrieve Components 2 | . . . . . . . . . 1 . . . . 1 . . Scanalyzer 18 | . . . 12 . . . . 5 . . . . . 1 . . Insert Component 9 | . . . 6 . . . . 2 . . . . . 1 . . Analyze 8 | . . . 5 . . . . 3 . . . . . . . . Retrieve Study 1 | . . . 1 . . . . . . . . . . . . . Garrison Access Hacks 6 | . . . . . . . . . . 1 . 1 . 1 2 1 Seal Access 6 | . . . . . . . . . . 1 . 1 . 1 2 1 Unauthorized Hacks 2 | . 1 . 1 . . . . . . . . . . . . . Terminals 2 | . 1 . 1 . . . . . . . . . . . . . Operators 2 | . 1 . 1 . . . . . . . . . . . . . Fabricators . | . . . . . . . . . . . . . . . . . Repair Stations . | . . . . . . . . . . . . . . . . . Recycling Units . | . . . . . . . . . . . . . . . . . Scanalyzers . | . . . . . . . . . . . . . . . . . Garrison Access . | . . . . . . . . . . . . . . . . . Data Cores Recovered . | . . . . . . . . . . . . . . . . . Used . | . . . . . . . . . . . . . . . . . Hacking Detections 59 | . 4 . 9 . . . 11 9 6 2 . 4 1 6 4 3 Full Trace Events 8 | . . . 2 . . . 3 1 1 . . . . . . 1 Feedback Events 1 | . . . 1 . . . . . . . . . . . . . Corruption 1 | . . . 1 . . . . . . . . . . . . . Feedback Blocked . | . . . . . . . . . . . . . . . . . Robot Schematics Acquired . | . . . . . . . . . . . . . . . . . Robots Built . | . . . . . . . . . . . . . . . . . Authchips . | . . . . . . . . . . . . . . . . . Time . | . . . . . . . . . . . . . . . . . Total Robot Build Rating . | . . . . . . . . . . . . . . . . . Part Schematics Acquired 9 | . . . 5 . . . 1 2 . . . 1 . . . . Parts Built 2 | . . . . . . . . 1 1 . . . . . . . Authchips . | . . . . . . . . . . . . . . . . . Time 94 | . . . . . . . . 36 58 . . . . . . . Total Part Build Rating 6 | . . . . . . . . 3 3 . . . . . . . Part Studies Acquired 1 | . . . 1 . . . . . . . . . . . . . Parts Repaired 13 | . 1 . 3 . . . 3 . . 1 . . . 5 . . Time 466 | . 26 . 98 . . . 127 . . 19 . . . 196 . . Parts Recycled . | . . . . . . . . . . . . . . . . . Recycled Matter . | . . . . . . . . . . . . . . . . . Retrieved Matter . | . . . . . . . . . . . . . . . . . Retrieved Components 4 | . . . . . . . . . 3 . . . . 1 . . Parts Scanalyzed 9 | . . . 6 . . . . 2 . . . . . 1 . . Part Schematics Acquired 7 | . . . 5 . . . . 2 . . . . . . . . Parts Damaged 1 | . . . 1 . . . . . . . . . . . . . Bothacking | -11 -10 -10 -9 -9 -9 -8 -8 -7 -6 -5 -5 -5 -4 -3 -2 -1 ------------ Run | Yrd Mat Min Mat Min Exi Min Mat Fac Fac Fac Was Fac Fac Res Res Acc Used RIF Installer . | . . . . . . . . . . . . . . . . . Robots Hacked . | . . . . . . . . . . . . . . . . . Non-combat . | . . . . . . . . . . . . . . . . . Combat . | . . . . . . . . . . . . . . . . . Robot Hacks Applied . | . . . . . . . . . . . . . . . . . Relay Couplers Released . | . . . . . . . . . . . . . . . . . Fabnet Peak Effective % . | . . . . . . . . . . . . . . . . . Robots Rewired . | . . . . . . . . . . . . . . . . . Allies Hacked . | . . . . . . . . . . . . . . . . . Hacks Repelled . | . . . . . . . . . . . . . . . . . Allies | -11 -10 -10 -9 -9 -9 -8 -8 -7 -6 -5 -5 -5 -4 -3 -2 -1 -------- Run | Yrd Mat Min Mat Min Exi Min Mat Fac Fac Fac Was Fac Fac Res Res Acc Total Allies 1 | . . . . . . . . . . . 1 . . . . . Largest Group 1 | . . . . . . . . . . . 1 . . . . . Highest-Rated Group 31 | . . . . . . . . . . . 31 . . . . . Highest-Rated Ally 31 | . . . . . . . . . . . 31 . . . . . Total Orders . | . . . . . . . . . . . . . . . . . Ally Attacks 8 | . . . . . . . . . . . 8 . . . . . Total Damage 165 | . . . . . . . . . . . 165 . . . . . Kills . | . . . . . . . . . . . . . . . . . Allies Corrupted . | . . . . . . . . . . . . . . . . . Allies Melted . | . . . . . . . . . . . . . . . . . Intel | -11 -10 -10 -9 -9 -9 -8 -8 -7 -6 -5 -5 -5 -4 -3 -2 -1 ------- Run | Yrd Mat Min Mat Min Exi Min Mat Fac Fac Fac Was Fac Fac Res Res Acc Active Infowar (turns) 7071 | 40 1237 3 948 . . 511 1691 678 268 135 48 299 90 386 547 190 Optics 4807 | . . . . . . 511 1691 678 267 135 48 299 90 386 547 155 Sensors 2324 | . . . . . . . 11 678 268 116 30 244 90 348 394 145 Seismic 1280 | 40 1237 3 . . . . . . . . . . . . . . T.N.C. 948 | . . . 948 . . . . . . . . . . . . . Cloaking 1 | . . . . . . . . . . 1 . . . . . . Jamming 910 | . . . . . . . . 22 17 6 1 . 88 386 390 . ECM 327 | . . . . . . . . 7 12 8 1 16 . 3 259 21 Robot Analysis Total 3 | . 2 . 1 . . . . . . . . . . . . . Derelict Logs Recovered . | . . . . . . . . . . . . . . . . . Drone Launches . | . . . . . . . . . . . . . . . . . Drone Recoveries . | . . . . . . . . . . . . . . . . . Exploration | -11 -10 -10 -9 -9 -9 -8 -8 -7 -6 -5 -5 -5 -4 -3 -2 -1 ------------- Run | Yrd Mat Min Mat Min Exi Min Mat Fac Fac Fac Was Fac Fac Res Res Acc Turns Passed 10545 | 243 1237 255 2289 364 1198 581 1691 678 268 135 48 299 90 386 547 236 Spaces Moved 9027 | 106 490 75 998 198 722 319 834 1047 579 300 134 667 291 596 1088 583 Core 40 | 2 . . . . . . . . . . . . . . . 38 Treads 3291 | . 287 75 858 198 722 319 832 . . . . . . . . . Legs 447 | 104 203 . 140 . . . . . . . . . . . . . Wheels . | . . . . . . . . . . . . . . . . . Hover . | . . . . . . . . . . . . . . . . . Flight 5249 | . . . . . . . 2 1047 579 300 134 667 291 596 1088 545 Fastest Speed 20 | 50 120 240 160 160 160 160 155 29 28 28 26 28 26 26 20 24 Average Speed 86 | 179 185 240 175 160 160 160 156 29 28 28 27 29 26 26 24 32 Slowest Speed 400 | 190 240 240 400 160 160 160 242 29 29 28 32 107 26 29 112 50 Overloaded Moves 104 | . . . . . . . . . . . . . . . 104 . Propulsion Burnouts . | . . . . . . . . . . . . . . . . . Robots Hopped 114 | . . . . . . . . 24 3 1 8 24 4 9 32 9 Potential Cave-ins . | . . . . . . . . . . . . . . . . . Cave-ins Triggered . | . . . . . . . . . . . . . . . . . Exploration Rate (%) 42 | 5 86 23 74 32 94 77 51 34 20 11 94 18 9 20 38 28 Regions Visited 16 Branch Regions 4 Pre-discovered Areas . | . . . . . . . . . . . . . . . . . Known Exits Taken 7 | . . . . . . . 1 1 1 . . 1 1 1 1 . Unknown Exits Taken 7 | 1 1 1 1 1 1 1 . . . . . . . . . . Scrap Searched 2 | . . . . 1 . 1 . . . . . . . . . . Spaces Dug 61 | . . . . . . . 1 9 8 5 . 12 . 1 21 4 Terrain Destroyed 125 | . 9 3 17 2 . 1 19 14 17 5 . 12 . 1 21 4 Melee 54 | . . . . . . . 1 2 8 5 . 12 . 1 21 4 Projectile 11 | . . . 1 2 . 1 7 . . . . . . . . . AOE 60 | . 9 3 16 . . . 11 12 9 . . . . . . . Terrain Rammed . | . . . . . . . . . . . . . . . . . Walls Destroyed . | . . . . . . . . . . . . . . . . . Machines Disabled . | . . . . . . . . . . . . . . . . . Actions | -11 -10 -10 -9 -9 -9 -8 -8 -7 -6 -5 -5 -5 -4 -3 -2 -1 --------- Run | Yrd Mat Min Mat Min Exi Min Mat Fac Fac Fac Was Fac Fac Res Res Acc Total 10867 | 133 666 115 1318 216 765 352 1055 1373 668 344 135 719 301 811 1292 604 Wait 1001 | . 40 1 54 2 39 13 31 305 43 23 6 50 . 208 185 1 Move 8796 | 105 489 74 997 197 721 318 833 999 572 298 121 618 282 577 1030 565 Hop 102 | . . . . . . . . 23 3 1 4 24 4 9 25 9 Pick Up 121 | 8 22 8 26 1 1 1 15 6 8 5 . 2 4 4 8 2 Fast Attach 53 | 3 2 1 12 . 1 . 9 2 2 1 1 6 . 4 4 5 Attach 87 | 3 9 4 16 . 1 1 18 4 5 6 2 1 3 3 6 5 Detach 43 | . 4 1 13 . 2 . 13 1 1 2 . 1 1 . 1 3 Swap 32 | . 5 . 12 . . . 12 . 1 . 1 . . 1 . . Drop 115 | . 8 4 42 1 . . 27 13 8 3 . . . 3 3 3 Fire 394 | 14 87 22 144 15 . 19 90 2 1 . . . . . . . Melee 96 | . . . 1 . . . 3 18 9 5 . 17 . 2 30 11 Ram . | . . . . . . . . . . . . . . . . . Kick . | . . . . . . . . . . . . . . . . . Crush 5 | . . . 1 . . . 4 . . . . . . . . . Escape Stasis 22 | . . . . . . . . . 15 . . . 7 . . . Rewire . | . . . . . . . . . . . . . . . . . Trap . | . . . . . . . . . . . . . . . . . Miscellaneous . | . . . . . . . . . . . . . . . . . Route ------- -11/Scrapyard -10/Materials (discovered 3 exits: *Mat / [*Min x2]) -10/Mines -9/Materials (discovered 3 exits: *Mat / [*Min x2]) -9/Mines -9/Exiles (discovered 2 exits: [*Min x2]) -8/Mines -8/Materials (discovered 2 exits: *Fac x2) -7/Factory (discovered 4 exits: *Fac x4) -6/Factory (discovered 5 exits: *Fac x4 / *Low) -5/Factory -5/Waste -5/Factory (discovered 4 exits: *Fac x4) -4/Factory (discovered 4 exits: *Res x4) -3/Research (discovered 3 exits: *Res x3) -2/Research (discovered 3 exits: *Acc x3) -1/Access History --------- Turn | Location | Event 7 | -11/Scrapyard | Discovered new exit (range 15) 244 | -11/Scrapyard | Entered Materials 303 | -10/Materials | Build established: Mutant 425 | -10/Materials | Discovered new exit (range 10) 427 | -10/Materials | Discovered new exit (range 16) 433 | -10/Materials | Core integrity fell below 50% 675 | -10/Materials | Discovered new exit (range 16) 1256 | -10/Materials | Core integrity fell below 20% 1304 | -10/Materials | Repaired Lgt. Treads 1481 | -10/Materials | Entered Mines 1713 | -10/Mines | Discovered new exit (range 3) 1736 | -10/Mines | Entered Materials 1736 | -9/Materials | Evolved 2 slots: Propulsion x1, Utility x1 1786 | -9/Materials | Discovered new exit (range 7) 2661 | -9/Materials | Build established: Scavenger-Mutant 3148 | -9/Materials | Discovered new exit (range 8) 3448 | -9/Materials | Repaired Broken Lgt. Treads+ 3475 | -9/Materials | Repaired Lgt. Treads+ 3580 | -9/Materials | Repaired Corrupted Lgt. Treads+? 3852 | -9/Materials | Discovered new exit (range 16) 4025 | -9/Materials | Entered Mines 4089 | -9/Mines | Deemed a non-threat by the Exiles lab entrance 4089 | -9/Mines | Discovered new exit (range 5) 4389 | -9/Mines | Entered Exiles 4389 | -9/Exiles | Found Exiles lab destroyed 4412 | -9/Exiles | Discovered new exit (range 15) 4998 | -9/Exiles | Opened EX-Vault 5225 | -9/Exiles | Discovered new exit (range 14) 5587 | -9/Exiles | Entered Mines 5853 | -8/Mines | Core integrity fell below 50% 6139 | -8/Mines | Discovered new exit (range 9) 6168 | -8/Mines | Entered Materials 6168 | -8/Materials | Evolved 2 slots: Utility x2 6540 | -8/Materials | Build established: Mutant 6920 | -8/Materials | Build established: Scavenger-Mutant 7004 | -8/Materials | Repaired Adv. Treads 7059 | -8/Materials | Repaired Imp. Medium Laser? 7117 | -8/Materials | Discovered new exit (range 3) 7238 | -8/Materials | Repaired Particle Charger? 7702 | -8/Materials | Discovered new exit (range 20) 7856 | -8/Materials | Identified exit to Factory 7859 | -8/Materials | Entered Factory 7859 | -7/Factory | Evolved 2 slots: Propulsion x1, Utility x1 8119 | -7/Factory | Identified exit to Factory 8194 | -7/Factory | Fabricated Hacking Suite? 8199 | -7/Factory | Build established: Ninja 8537 | -7/Factory | Entered another Factory area 8537 | -6/Factory | Evolved 2 slots: Utility x2 8578 | -6/Factory | Identified exit to Factory 8701 | -6/Factory | Fabricated Imp. VTOL Module? 8780 | -6/Factory | Discovered new exit (range 14) 8784 | -6/Factory | Identified exit to Lower Caves 8805 | -6/Factory | Entered another Factory area 8805 | -5/Factory | Evolved 2 slots: Propulsion x1, Utility x1 8871 | -5/Factory | Build established: Hacker-Ninja 8904 | -5/Factory | Repaired Imp. Sensor Array 8936 | -5/Factory | Discovered new exit (range 12) 8940 | -5/Factory | Sucked down chute 8940 | -5/Factory | Entered Waste 8941 | -5/Waste | Met a frightened Derelict 8943 | -5/Waste | Spotted C-40 Crusher 8946 | -5/Waste | Spotted C-40 Crusher 8951 | -5/Waste | Spotted C-40 Crusher 8955 | -5/Waste | EMP discharged 8960 | -5/Waste | Spotted C-40 Crusher 8963 | -5/Waste | Spotted C-40 Crusher 8970 | -5/Waste | Crushed by Compactor (1 part destroyed, 1 dropped) 8970 | -5/Waste | Crushed by Compactor (1 part destroyed, 2 dropped) 8978 | -5/Waste | Spotted C-40 Crusher 8982 | -5/Waste | Discovered new exit (range 12) 8988 | -5/Waste | Identified exit to Factory 8988 | -5/Waste | Entered Factory 9055 | -5/Factory | Identified exit to Factory 9105 | -5/Factory | Spotted B-75 Beast 9281 | -5/Factory | Central database locked down 9287 | -5/Factory | Entered another Factory area 9287 | -4/Factory | Evolved 2 slots: Power x1, Propulsion x1 9318 | -4/Factory | Discovered new exit (range 10) 9327 | -4/Factory | Identified exit to Research 9377 | -4/Factory | Entered Research 9377 | -3/Research | Evolved 2 slots: Utility x2 9382 | -3/Research | Found Gamma Bomb Array 9397 | -3/Research | Identified exit to Research 9415 | -3/Research | Repaired Adv. ECM Suite 9612 | -3/Research | Repaired Imp. Propulsion Shielding 9652 | -3/Research | Repaired Katana 9713 | -3/Research | Repaired Imp. VTOL Module 9758 | -3/Research | Repaired Imp. Sensor Array 9763 | -3/Research | Entered another Research area 9763 | -2/Research | Evolved 2 slots: Propulsion x1, Utility x1 9809 | -2/Research | Spotted B-90 Cyclops 10224 | -2/Research | Lost 6 parts (2p1n3u) 10267 | -2/Research | Identified exit to Access 10310 | -2/Research | Entered Access 10310 | -1/Access | Evolved 2 slots: Propulsion x1, Utility x1 10523 | -1/Access | Spotted B-99 Colossus 10539 | -1/Access | Core integrity fell below 50% 10544 | -1/Access | Core integrity fell below 20% 10546 | -1/Access | Destroyed by S-43 Plague with Heavy Machine Gun Last Messages --------------- Penetrated by Slug. Slug penetrates Wall. Penetrated by Slug. U-05 Engineer builds a Wall. Slug penetrates Wall. Penetrated by Slug. S-43 Plague knocked back. Knocked back. Slug penetrates S-43 Plague. Penetrated by Slug. Slug penetrates Wall. Penetrated by Slug. Hacking Suite destroyed. Slug penetrates Wall. Acquired 14 matter. Graphene Brace destroyed. S-43 Plague destroyed. Penetrated by Slug. Slug penetrates Wall. Penetrated by Slug. Map ----- +----------------------------------------------------+ | """"" #????????????????????????????????? | | """"" #????????????????????????????????? | | #????????????????????????????????? | | ##### #????????????????????????????????? | | ??#"" ##????######+###+###?????????????? | | ??#"" """"" #????# #?????????????? | | ??#"" """"" ###### #?????????????? | | ??#T """"" + " #?????????????? | | ??#"" """"" ###### """" #?????????????? | | ??#"" """"" #????# """"" #?????????????? | | ??#"" """"" # ???# """"" #??????????#### | | ??### # ???# """" #??????????# | | ????# # ???# " #??????????# | | ????# # ???# #??????????# | | ????# """"" + ???# #??????????# | | ????# """"" # ???# ! #??????????# | | ????# """"" # ???# #??????????# | | ????# """"" ############+################# | | ????# """"" u !!= | | ????# """"" !!= | | ????# g h !!= | | ????# g | | ????# | | ????# | | ????# " | | ????# """ @##########+######+### | | ??? G #????# # | | ?? """ g h ###### # | | ? " gh # # # | | ?? ?? g ] # # # | | ????? g # # !! # | | ????# !** # # !! # | | ?????########### %|%% + #############"##### | | ?????????????#BB ss!= # #???????????## | | ?????????????#BB u s! # #????????????# | | ?????????????##; !! # #????????????# | | ??????????????## s # #????????????# | | ???????????????# ######????????????# | | ???????????????# #?????????????????# | | ?????????????###+###"#+#########????????????# | | ?????????????# #????????????# " | | ?????????????# #????????????# " | | ?????????????# % #????????????# " | | ?????????????# ! #????????????# | | ?????????????#= #????????????# | | ?????????????# """"T"""" #????????????###### | | ?????????????# """"""""""" #?????????????????? | | ?????????????###################?????????????????? | | | | | +----------------------------------------------------+ Best States ------------- Heat Dissipation 52 Energy Generation 53 Energy Capacity 280 Matter Stores 300 Matter Capacity 300 Sight Range 22 Robot Scan Range 16 Terrain Scan Density 10 ECM Strength 2 Jamming Range 12 Power Amplification 20 Corruption Block 20 Armor Coverage 150 Propulsion Shielding 66 Weapon Shielding 33 Evasion (%) 65 Targeting Accuracy 10 Melee Accuracy 6 Recoil Reduction 3 Particle Charging 15 Offensive Hacking 30 Defensive Hacking 12 Item Schematics ----------------- Propulsion Shielding | -9/Materials | Scanalyzed Lgt. Armor Plating | -9/Materials | Scanalyzed Structural Scanner | -9/Materials | Scanalyzed Flight Unit | -9/Materials | Scanalyzed Imp. Flight Unit | -9/Materials | Scanalyzed Hacking Suite | -8/Materials | Hacked System Shield | -7/Factory | Scanalyzed Imp. VTOL Module | -7/Factory | Scanalyzed Cld. VTOL Module | -5/Factory | Hacked Robot Schematics ------------------ None Fabricated ------------ Hacking Suite | x1 | -7/Factory Imp. VTOL Module | x1 | -6/Factory Repaired ---------- Lgt. Treads | 47% | -10/Materials Lgt. Treads | 22% | -9/Materials | Broken Lgt. Treads | 17% | -9/Materials Lgt. Treads | 82% | -9/Materials | Corrupted Adv. Treads | 18% | -8/Materials Imp. Medium Laser | 1% | -8/Materials Particle Charger | 8% | -8/Materials Imp. Sensor Array | 18% | -5/Factory Adv. ECM Suite | 3% | -3/Research Imp. Propulsion Shielding | 51% | -3/Research Katana | 32% | -3/Research Imp. VTOL Module | 22% | -3/Research Imp. Sensor Array | 27% | -3/Research Studied --------- Lgt. Treads | -9/Materials | Hacked Alien Tech Used ----------------- None Achievements -------------- Armchair Analyst Close Call Cya! Denied? I Laugh At Your Crits I Spy Luggage Code Part-time Excavator Professional Mechanic Prolific Hacker Respectable Loadout Safety First Throw Away The Key Well Done Challenges ------------ None Game ------ Seed SchematicShadeFrame Manual? 0 Play Time 03:33:02 Cumulative 12.1 hours Start 2025.12.02 @ 19:22:31 End 2025.12.03 @ 23:22:09 Sessions 12 Manual Loads 0 Difficulty Rogue Special Mode None Game No. 12 Rogue 12 Adventurer 0 Explorer 0 Win Type - Total 0 Types 0/0/0/0/0/0/0/0/0/0 Lore% 18 Gallery% 20 Achievement% 19 Wizard Run 0 Options --------- Layout 1 ASCII 0 Keyboard 0 Movement Numpad Keybinds 0 Fullscreen 2 Font 24/Terminus Map View 50x35 Zoom Use 0% Tactical HUD 0 Map Filters NONE Filters NONE Steam 1 RUN: 40d966ee-b027-4b48-af0b-cf02926d840c